bitfinex/quotes_ETHUSD_20230830
["timestamp","ask_amount","ask_price","bid_price","bid_amount"]
[1693354076696,5.77734,1730.9,1730.7,1.00409675]
[1693354077309,5.77734,1730.9,1730.6,7.31538131]
[1693354081621,5.77734,1730.9,1730.7,1.00406693]
[1693354086413,5.77734,1730.9,1730.6,7.91838183]
[1693354086414,5.77734,1730.9,1730.6,7.31538131]
[1693354086906,5.77734,1730.9,1730.6,1.53706131]
[1693354087089,5.77734,1730.9,1730.5,2.44460052]
[1693354087289,11.55483,1730.9,1730.6,1.00413796]
[1693354087507,13.50103,1730.9,1730.6,1.00413796]
[1693354088675,15.16743,1730.9,1730.6,1.00413796]
[1693354090413,15.16743,1730.9,1730.5,0.60300052]
[1693354090719,17.261887,1730.9,1730.5,1.60714016]
[1693354092235,17.261887,1730.9,1730.5,7.38574016]
[1693354092418,17.261887,1730.9,1730.6,1.00413964]
[1693354093081,17.261887,1730.9,1730.5,5.7786]
[1693354095451,17.72675148,1730.9,1730.5,5.7786]
[1693354096387,1.77267515,1730.8,1730.5,5.7786]
[1693354096590,7.55034515,1730.8,1730.5,5.7786]
[1693354096803,13.32801515,1730.8,1730.3,6.38215052]
[1693354097012,13.32801515,1730.8,1730.4,1.00424626]
[1693354097013,7.11094152,1730.7,1730.4,1.00424626]
[1693354097998,8.86164152,1730.7,1730.4,1.00424626]
[1693354099294,7.52884,1730.7,1730.4,1.00424626]
[1693354100496,7.52884,1730.7,1730.4,6.78318626]
[1693354100713,5.77814,1730.7,1730.4,5.77894]
[1693354100926,9.58045448,1730.9,1730.4,5.77894]
[1693354100927,8.18845448,1730.9,1730.4,5.77894]
[1693354101132,8.18845448,1730.9,1730.5,5.77865]
[1693354101633,9.91985448,1730.9,1730.5,5.77865]
[1693354101925,9.91985448,1730.9,1730.4,9.34424]
[1693354101926,19.35803508,1730.9,1730.4,9.34424]
[1693354102225,25.13555508,1730.9,1730.4,1.9369]
[1693354102430,23.74355508,1730.9,1730.4,1.9369]
[1693354102722,23.74355508,1730.9,1730.4,7.71586]
[1693354102915,8.15202551,1730.8,1730.4,7.71586]
[1693354106028,5.77767,1730.8,1730.4,13.49482]
[1693354107015,5.77767,1730.8,1730.4,7.71586]
[1693354108437,11.55534,1730.8,1730.4,7.71586]
[1693354110214,11.55534,1730.8,1730.3,7.40568]
[1693354110609,1.7666,1730.7,1730.3,7.40568]
[1693354110809,7.54469,1730.7,1730.3,7.40568]
[1693354112550,7.54469,1730.7,1730.3,13.18502]
[1693354112845,7.54469,1730.7,1730.3,15.61379733]
[1693354115863,7.54469,1730.7,1730.4,1.00421409]
[1693354116034,7.54469,1730.7,1730.4,6.78321409]
[1693354116235,7.54469,1730.7,1730.4,5.779]
[1693354116461,5.77809,1730.7,1730.4,5.779]
[1693354121055,7.46617,1730.8,1730.4,5.779]
[1693354121260,7.46617,1730.8,1730.4,11.558]
[1693354121261,5.77767,1730.8,1730.4,11.558]
[1693354121834,5.77767,1730.8,1730.4,5.779]
[1693354122058,5.77767,1730.8,1730.4,5.77885]
[1693354122572,5.77767,1730.8,1730.4,11.5577]
[1693354123663,5.77767,1730.8,1730.4,5.77885]
[1693354123862,7.17428245,1730.8,1730.4,5.77885]
[1693354126190,7.17428245,1730.8,1730.4,11.5577]
[1693354126986,7.17428245,1730.8,1730.4,14.43118065]
[1693354127155,5.77767,1730.8,1730.4,14.43118065]
[1693354129691,5.77767,1730.8,1730.4,8.65233065]
[1693354130265,5.77767,1730.8,1730.4,14.43118065]
[1693354132094,5.77767,1730.8,1730.4,8.65233065]
[1693354132668,5.77767,1730.8,1730.4,14.43117065]
[1693354132971,5.77767,1730.8,1730.4,16.3401155]
[1693354134106,5.77767,1730.8,1730.4,10.5612655]
[1693354139278,7.56077,1730.8,1730.4,10.5612655]
[1693354141107,1.7831,1730.8,1730.5,1.00419509]
[1693354141312,1.7831,1730.8,1730.5,5.77859]
[1693354148532,3.44624515,1730.8,1730.5,5.77859]
[1693354149413,9.22391515,1730.8,1730.4,8.65232065]
[1693354149715,9.22391515,1730.8,1730.4,14.43116065]
[1693354151508,7.56077,1730.8,1730.4,14.43116065]
[1693354155441,1.67500812,1730.9,1730.5,8.95748065]
[1693354155716,1.21242152,1731.1,1730.7,11.556]
[1693354155908,1.21242152,1731.1,1730.7,12.948]
[1693354156111,1.21242152,1731.1,1730.7,14.820604]
[1693354157296,4.51664842,1731.2,1730.9,5.77734]
[1693354157496,7.59443229,1731.4,1730.9,14.42816065]
[1693354157497,1.21242152,1731.3,1730.9,14.42816065]
[1693354157691,10.55762842,1731.4,1730.9,17.40217672]
[1693354157891,9.04210152,1731.4,1730.9,17.40217672]
[1693354158820,10.78940152,1731.4,1730.9,17.30217672]
[1693354159129,12.59743836,1731.4,1730.9,17.30217672]
[1693354159425,12.59743836,1731.4,1730.9,15.72016065]
[1693354160604,11.38501684,1731.4,1730.9,15.72016065]
[1693354161928,11.38501684,1731.4,1730.9,14.32816065]
[1693354162509,9.57698,1731.4,1730.9,14.32816065]
[1693354178461,9.57698,1731.4,1730.9,15.72016065]
[1693354178634,3.8013,1731.4,1731.0,4.26548065]
[1693354178965,11.55025,1731.6,1731.1,12.94522]
[1693354179145,11.55025,1731.6,1731.1,15.81870065]
[1693354179146,9.284685,1731.6,1731.1,15.81870065]
[1693354179725,3.509625,1731.6,1731.1,15.81870065]
[1693354179929,1.7032,1731.5,1731.1,17.41160065]
[1693354180359,1.7032,1731.5,1731.1,21.59537065]
[1693354189176,1.7032,1731.5,1731.1,20.20337065]
[1693354190864,1.7032,1731.5,1731.1,21.02169143]
[1693354197921,7.47858,1731.5,1731.1,8.65008065]
[1693354203302,7.47858,1731.5,1731.1,5.7766]
[1693354204772,7.47858,1731.5,1731.1,11.55327]
[1693354207307,10.37858,1731.5,1731.1,11.55327]
[1693354209021,23.32134,1731.5,1730.9,11.55446]
[1693354209320,6.813788,1731.4,1731.0,5.77696]
[1693354209483,8.800988,1731.4,1731.0,5.77696]
[1693354210489,14.576918,1731.4,1731.0,5.77696]
[1693354211306,8.800988,1731.4,1731.0,5.77696]
[1693354211519,1.9872,1731.4,1731.0,11.55396]
[1693354212589,3.19746653,1731.4,1731.0,11.55396]
[1693354216130,3.19746653,1731.4,1731.0,14.42744065]
[1693354216307,1.9872,1731.4,1731.1,4.26548065]
[1693354216658,2.9,1731.5,1731.2,19.14756807]
[1693354216833,2.9,1731.5,1731.4,5.77567]
[1693354217035,2.9,1731.5,1731.4,8.64915065]
[1693354217526,2.9,1731.5,1731.4,5.77567]
[1693354218723,2.9,1731.5,1731.3,5.77583]
[1693354220852,2.9,1731.5,1731.3,11.55183]
[1693354221257,2.9,1731.5,1731.3,13.32728181]
[1693354226371,2.9,1731.5,1731.3,21.97676246]
[1693354229760,2.9,1731.5,1731.3,21.97675246]
[1693354235901,2.9,1731.5,1731.4,2.87348065]
[1693354236103,2.9,1731.5,1731.4,8.64915065]
[1693354236405,2.9,1731.5,1731.4,11.4551929]
[1693354249010,2.9,1731.5,1731.3,5.77582]
[1693354249178,2.9,1731.5,1731.3,8.64930065]
[1693354249580,2.9,1731.5,1731.3,5.77582]
[1693354251134,2.9,1731.5,1731.2,5.77626]
[1693354251135,4.292,1731.5,1731.0,7.28287525]
[1693354251332,0.4292,1731.4,1731.0,8.65032065]
[1693354251534,2.1134,1731.4,1731.0,8.65032065]
[1693354251733,7.88917,1731.4,1731.0,8.65032065]
[1693354252036,2.1134,1731.4,1731.0,14.42732065]
[1693354252191,2.1134,1731.4,1731.0,5.77684]
[1693354252396,13.66485,1731.4,1730.9,5.77714]
[1693354252632,1.366485,1731.3,1731.0,5.77697]
[1693354254298,1.366485,1731.3,1731.0,11.55397]
[1693354255330,7.88907,1731.4,1731.0,11.55397]
[1693354255544,1.6842,1731.4,1731.0,14.42745065]
[1693354258123,1.6842,1731.4,1731.0,20.20445065]
[1693354258724,7.45987,1731.4,1731.0,11.55397]
[1693354258912,7.45987,1731.4,1730.9,11.55445]
[1693354258913,14.62754,1731.4,1730.9,11.55445]
[1693354259113,14.62754,1731.4,1730.9,14.42793065]
[1693354259415,1.462754,1731.3,1730.9,14.42793065]
[1693354264537,7.238764,1731.3,1730.9,14.42793065]
[1693354267067,1.6842,1731.4,1731.0,2.87348065]
[1693354267220,4.9278,1731.5,1731.1,11.5532]
[1693354267425,6.6062,1731.5,1731.1,14.42668065]
[1693354271260,6.6062,1731.5,1731.1,20.20335065]
[1693354271918,6.6062,1731.5,1731.2,4.89381572]
[1693354272117,2.9,1731.5,1731.3,5.776]
[1693354278957,2.9,1731.5,1731.2,5.77616]
[1693354279158,2.9,1731.5,1731.1,5.7766]
[1693354279357,10.65258,1731.5,1731.1,8.65008065]
[1693354279932,1.065258,1731.4,1731.1,5.7766]
[1693354280762,16.42816,1731.5,1731.1,11.55327]
[1693354280763,10.65258,1731.5,1731.1,11.55327]
[1693354280964,10.65258,1731.5,1731.1,17.32994]
[1693354280965,4.8772,1731.5,1731.1,17.32994]
[1693354281280,4.8772,1731.5,1731.1,11.55327]
[1693354281635,4.8772,1731.5,1731.1,14.42675065]
[1693354281946,4.8772,1731.5,1731.1,17.40582272]
[1693354282145,4.8772,1731.5,1731.2,2.87348065]
[1693354282334,2.9,1731.5,1731.3,5.776]
[1693354307995,1.6875,1731.6,1731.3,5.776]
[1693354309403,1.21292792,1731.8,1731.4,3.10408131]
[1693354309611,3.36042792,1731.9,1731.5,11.86094813]
[1693354309767,3.36042792,1731.9,1731.5,14.73442878]
[1693354310179,4.87658782,1731.9,1731.5,14.73442878]
[1693354310503,2.1475,1731.9,1731.5,14.73442878]
[1693354311099,3.8728,1731.9,1731.5,14.73442878]
[1693354312287,3.8728,1731.9,1731.6,4.34692353]
[1693354312486,2.94,1732.0,1731.7,17.32401]
[1693354312911,4.6653,1732.0,1731.7,11.54934]
[1693354314013,4.6653,1732.0,1731.8,0.27520534]
[1693354314220,4.6653,1732.0,1731.8,7.23191987]
[1693354317120,2.94,1732.0,1731.8,7.23191987]
[1693354317422,2.94,1732.0,1731.8,18.78057987]
[1693354317594,2.94,1732.0,1731.8,13.00624987]
[1693354318699,2.94,1732.0,1731.8,15.87973052]
[1693354318900,2.94,1732.0,1731.9,1.58797305]
[1693354319113,2.94,1732.0,1731.9,7.36197305]
[1693354319422,2.94,1732.0,1731.9,13.13597305]
[1693354320127,2.94,1732.0,1731.9,16.0094537]
[1693354322130,2.94,1732.0,1731.9,7.36197305]
[1693354322438,2.94,1732.0,1731.9,13.13597305]
[1693354322727,2.94,1732.0,1731.9,7.36197305]
[1693354323511,2.94,1732.0,1731.8,0.27520534]
[1693354323710,1.392,1731.9,1731.8,0.27520534]
[1693354324090,1.392,1731.9,1731.7,11.54905]
[1693354324290,11.74267,1732.0,1731.7,11.54905]
[1693354324490,13.73407,1732.0,1731.7,11.54905]
[1693354324727,13.73407,1732.0,1731.7,5.77445]
[1693354329049,13.73407,1732.0,1731.8,0.23170238]
[1693354333648,16.262185,1732.0,1731.8,0.23170238]
[1693354334945,22.036015,1732.0,1731.8,0.23170238]
[1693354335324,22.036015,1732.0,1731.6,11.5496]
[1693354335524,22.036015,1732.0,1731.6,14.42308065]
[1693354335722,20.644015,1732.0,1731.6,14.42308065]
[1693354335929,22.036015,1732.0,1731.6,14.42308065]
[1693354336552,18.1159,1732.0,1731.6,14.42308065]
[1693354338450,12.34207,1732.0,1731.6,14.42308065]
[1693354343939,12.34207,1732.0,1731.7,0.23196216]
[1693354349755,1.392,1731.9,1731.7,0.23196216]
[1693354350074,1.392,1731.9,1731.5,5.77528]
[1693354350075,5.77433,1731.8,1731.5,5.77528]
[1693354350246,7.41313,1731.8,1731.5,5.77528]
[1693354351673,1.6388,1731.8,1731.5,5.77528]
[1693354353155,3.096702,1731.8,1731.5,5.77528]
[1693354353487,10.263042,1731.8,1731.5,5.77528]
[1693354353783,10.263042,1731.8,1731.4,11.55095]
[1693354353959,12.278242,1731.8,1731.4,11.55095]
[1693354371534,12.73052247,1731.8,1731.4,11.55095]
[1693354371731,1.27305225,1731.7,1731.4,5.77546]
[1693354371936,7.04773225,1731.7,1731.4,5.77546]
[1693354372121,14.21441225,1731.7,1731.3,5.77583]
[1693354372312,2.81344123,1731.6,1731.3,5.77583]
[1693354372504,8.58853123,1731.6,1731.3,5.77583]
[1693354372998,7.19653123,1731.6,1731.3,5.77583]
[1693354373224,8.97143123,1731.6,1731.3,5.77583]
[1693354373701,10.36343123,1731.6,1731.3,5.77583]
[1693354373896,1.03634312,1731.5,1731.3,5.77583]
[1693354379555,16.89295123,1731.6,1731.3,5.77583]
[1693354380533,16.89295123,1731.6,1731.1,13.11425]
[1693354380534,1.392,1731.5,1731.1,13.11425]
[1693354380720,5.77571,1731.4,1731.1,13.11425]
[1693354381050,5.77571,1731.4,1731.1,11.55315]
[1693354383724,5.77571,1731.4,1731.1,5.77651]
[1693354385028,5.77571,1731.4,1731.1,7.855306]
[1693354385424,10.3936,1731.5,1731.1,10.72878665]
[1693354385425,8.6754,1731.5,1731.1,10.72878665]
[1693354385728,2.9,1731.5,1731.1,23.67412665]
[1693354389131,2.9,1731.5,1731.1,22.28212665]
[1693354392237,8.67536,1731.5,1731.1,22.28212665]
[1693354393261,8.67536,1731.5,1731.1,19.408646]
[1693354393789,10.45506,1731.5,1731.1,19.408646]
[1693354395866,10.45506,1731.5,1731.1,17.32985]
[1693354396281,12.60416,1731.5,1731.1,17.32985]
[1693354399479,2.9,1731.5,1731.1,17.32985]
[1693354401075,8.67534,1731.5,1731.1,17.32985]
[1693354401580,1.392,1731.4,1731.0,5.77684]
[1693354401871,5.77607,1731.3,1731.0,5.77684]
[1693354402248,7.43787,1731.3,1731.0,5.77684]
[1693354402449,13.21394,1731.3,1731.0,5.77684]
[1693354403473,7.43787,1731.3,1731.0,5.77684]
[1693354421418,7.43787,1731.3,1731.1,0.20083122]
[1693354426733,5.77607,1731.3,1731.1,0.20083122]
[1693354427106,5.77585,1731.4,1731.1,5.97741122]
[1693354427336,12.19619,1731.5,1731.1,12.92950634]
[1693354427337,8.67539,1731.5,1731.1,12.92950634]
[1693354438565,10.32289,1731.5,1731.1,12.92950634]
[1693354443079,2.9,1731.5,1731.1,21.57965699]
[1693354443364,2.9,1731.5,1731.2,7.9340757]
[1693354443867,8.67536,1731.5,1731.3,0.20165666]
[1693354468898,14.45072,1731.5,1731.3,0.20165666]
[1693354482276,8.67536,1731.5,1731.3,0.20165666]
[1693354482881,8.67536,1731.5,1731.3,5.97764666]
[1693354483037,8.67536,1731.5,1731.3,7.15301833]
[1693354483336,8.67536,1731.5,1731.3,5.97764666]
[1693354483683,14.45069,1731.5,1731.3,0.20165666]
[1693354484039,8.67533,1731.5,1731.3,5.97765666]
[1693354484240,14.45066,1731.5,1731.3,0.20165666]
[1693354484438,8.67533,1731.5,1731.3,0.20165666]
[1693354484662,14.45066,1731.5,1731.3,0.20165666]
[1693354485047,8.67533,1731.5,1731.3,0.20165666]
[1693354485265,8.67533,1731.5,1731.3,5.97755666]
[1693354485469,8.67533,1731.5,1731.3,0.20165666]
[1693354486277,14.45066,1731.5,1731.3,0.20165666]
[1693354486942,1.392,1731.4,1731.3,0.20165666]
[1693354487273,1.392,1731.4,1730.9,0.603066]
[1693354487274,19.93249193,1731.4,1730.9,6.380396]
[1693354487483,1.6281,1731.3,1731.0,1.00394043]
[1693354487640,7.40439,1731.3,1731.0,6.98478239]
[1693354487972,7.40439,1731.3,1731.0,5.98084196]
[1693354488273,13.18068,1731.3,1731.0,5.98084196]
[1693354489071,13.18068,1731.3,1731.0,0.20391196]
[1693354489277,15.421395,1731.3,1731.0,0.20391196]
[1693354489682,21.197685,1731.3,1731.0,0.20391196]
[1693354489840,1.392,1731.1,1731.0,0.20391196]
[1693354490045,18.72201,1731.1,1730.6,0.603066]
[1693354490262,3.264201,1731.0,1730.6,1.60716485]
[1693354490467,11.55468,1730.9,1730.7,1.00409885]
[1693354490778,11.55468,1730.9,1730.5,0.603066]
[1693354491004,11.55468,1730.9,1730.5,5.98643136]
[1693354491297,13.9882971,1730.9,1730.6,1.00411243]
[1693354491498,1.392,1730.7,1730.4,0.603066]
[1693354491699,1.392,1730.7,1730.3,5.77925]
[1693354491700,11.55668,1730.6,1730.3,5.77925]
[1693354492009,5.77834,1730.6,1730.3,7.0858925]
[1693354492518,11.55668,1730.6,1730.3,7.0858925]
[1693354493030,5.77834,1730.6,1730.3,7.0858925]
[1693354493305,5.77834,1730.6,1730.3,12.8652325]
[1693354493906,5.77834,1730.6,1730.4,0.20517238]
[1693354494067,5.77834,1730.6,1730.4,5.98411238]
[1693354495307,8.67834,1730.6,1730.4,5.98411238]
[1693354495602,8.67834,1730.6,1730.4,0.20517238]
[1693354495981,8.67834,1730.6,1730.3,11.5585]
[1693354496182,8.67834,1730.6,1730.3,5.77925]
[1693354497588,8.67834,1730.6,1730.3,11.55859]
[1693354498710,8.67834,1730.6,1730.3,5.77925]
[1693354500672,8.67834,1730.6,1730.2,5.77945]
[1693354500673,15.84868,1730.6,1730.2,5.77945]
[1693354501293,17.52488,1730.6,1730.2,5.77945]
[1693354502719,20.060539,1730.6,1730.2,5.77945]
[1693354505119,20.060539,1730.6,1730.0,9.760236]
[1693354505120,1.392,1730.4,1730.0,9.760236]
[1693354505341,5.77941,1730.3,1730.1,1.00439229]
[1693354505537,5.77941,1730.3,1730.0,14.93733]
[1693354505833,5.77941,1730.3,1730.0,14.46075145]
[1693354506234,5.77941,1730.3,1730.0,8.68058145]
[1693354506458,5.77941,1730.3,1730.0,11.5605]
[1693354506753,11.55835,1730.4,1730.1,6.78423808]
[1693354506952,11.55835,1730.4,1730.1,5.77983]
[1693354509107,11.55835,1730.4,1730.2,0.20630044]
[1693354509639,11.55835,1730.4,1730.1,11.55966]
[1693354509839,5.77913,1730.4,1730.1,11.55966]
[1693354510544,5.17650479,1730.4,1730.1,13.5067366]
[1693354511436,5.17650479,1730.4,1730.2,1.00437298]
[1693354514204,5.77874,1730.5,1730.2,6.78401298]
[1693354514405,5.77874,1730.5,1730.2,5.77964]
[1693354515345,11.55757,1730.5,1730.2,5.77964]
[1693354515547,11.55757,1730.5,1730.3,0.577964]
[1693354522668,11.50757,1730.5,1730.3,0.577964]
[1693354524229,11.50757,1730.5,1730.4,0.20585436]
[1693354524816,11.50757,1730.5,1730.2,6.38031195]
[1693354525016,11.50757,1730.5,1730.3,1.00436419]
[1693354525217,11.50757,1730.5,1730.3,1.7428318]
[1693354525431,11.50757,1730.5,1730.3,0.73846761]
[1693354527526,11.50757,1730.5,1730.2,6.38031195]
[1693354527727,11.50757,1730.5,1730.3,1.00436303]
[1693354528844,17.2864,1730.5,1730.3,1.00436303]
[1693354529055,18.6784,1730.5,1730.3,1.00436303]
[1693354529261,18.6784,1730.5,1730.2,0.60067195]
[1693354529475,21.83529248,1730.5,1730.2,0.60067195]
[1693354530146,21.83529248,1730.5,1730.2,1.60506582]
[1693354530332,21.83529248,1730.5,1730.3,1.00439387]
[1693354530528,21.83529248,1730.5,1730.2,1.50167988]
[1693354530732,2.18352925,1730.4,1730.2,1.50167988]
[1693354530969,5.77934,1730.3,1730.2,1.50167988]
[1693354531272,4.70798137,1730.3,1730.2,1.50167988]
[1693354531469,4.70798137,1730.3,1730.2,0.90100793]
[1693354531932,4.70798137,1730.3,1730.2,0.90446753]
[1693354533568,4.70798137,1730.3,1730.2,2.10581144]
[1693354534460,4.70798137,1730.3,1730.2,0.90446753]
[1693354534637,4.70798137,1730.3,1730.2,2.20920231]
[1693354534832,4.70798137,1730.3,1730.2,1.20480351]
[1693354535474,4.70798137,1730.3,1730.2,2.7064834]
[1693354535677,4.70798137,1730.3,1730.2,2.20920231]
[1693354535860,4.70798137,1730.3,1730.2,1.20480351]
[1693354537059,4.70798137,1730.3,1730.2,2.11021238]
[1693354538555,4.70798137,1730.3,1730.2,1.91326727]
[1693354538758,4.70798137,1730.3,1730.2,2.11952911]
[1693354542580,4.70798137,1730.3,1730.2,2.72336465]
[1693354543581,4.70798137,1730.3,1730.2,1.81795578]
[1693354545473,4.70798137,1730.3,1730.2,1.21412024]
[1693354546586,11.55834,1730.4,1730.2,1.21412024]
[1693354546895,11.55834,1730.4,1730.2,0.20972144]
[1693354584086,20.767522,1730.4,1730.2,0.20972144]
[1693354585273,1.392,1730.3,1730.2,0.20972144]
[1693354585455,18.73002,1730.3,1730.2,0.20972144]
[1693354591116,18.73002,1730.3,1730.2,0.20972144]
[1693354620457,17.33802,1730.3,1730.2,0.20972144]
[1693354621146,18.73002,1730.3,1730.2,0.20972144]
[1693354623639,20.88883903,1730.3,1730.2,0.20972144]
[1693354623847,25.09570936,1730.3,1730.2,0.20972144]
[1693354624261,25.67400418,1730.3,1730.2,0.20972144]
[1693354624654,25.67400418,1730.3,1730.2,0.0034596]
[1693354624856,25.67400418,1730.3,1729.6,7.70379]
[1693354625060,25.67400418,1730.3,1729.7,1.639]
[1693354625061,1.392,1730.0,1729.7,1.639]
[1693354625287,5.78068,1729.9,1729.7,0.21267556]
[1693354625863,5.78068,1729.9,1729.8,0.00334923]
[1693354629000,11.56136,1729.9,1729.8,0.215763]
[1693354670226,8.68067,1730.0,1729.8,5.996773]
[1693354670530,2.9,1730.0,1729.9,0.5996773]
[1693354670933,8.68034,1730.0,1729.9,0.81603672]
[1693354673838,5.78034,1730.0,1729.9,0.81603672]
[1693354678436,5.78034,1730.0,1729.9,0.21635942]
[1693354678839,11.56068,1730.0,1729.9,0.21635942]
[1693354681069,14.46068,1730.0,1729.9,0.21635942]
[1693354704310,15.85268,1730.0,1729.9,0.21635942]
[1693354704823,25.12095452,1730.0,1729.9,0.21635942]
[1693354705137,28.37963897,1730.0,1729.9,0.00334448]
[1693354705281,26.86199927,1730.0,1729.9,0.00334448]
[1693354705478,32.08813113,1730.0,1729.9,0.00334448]
[1693354705683,32.56813113,1730.0,1729.9,0.00334448]
[1693354705911,32.56813113,1730.0,1729.4,11.66445]
[1693354706112,1.392,1729.7,1729.4,5.88216]
[1693354706416,1.392,1729.5,1729.4,0.1]
[1693354707021,1.392,1729.5,1729.4,0.10324982]
[1693354710427,20.033592,1729.5,1729.4,0.10324982]
[1693354710819,14.251582,1729.5,1729.4,0.10324982]
[1693354711023,20.033592,1729.5,1729.4,0.10324982]
[1693354711323,14.251582,1729.5,1729.4,0.10324982]
[1693354711701,17.151582,1729.5,1729.4,0.10324982]
[1693354712923,17.151582,1729.5,1729.4,0.00324982]
[1693354713891,17.151582,1729.5,1729.2,0.1]
[1693354714092,1.392,1729.4,1729.2,0.1]
[1693354714293,7.17448,1729.4,1729.2,0.1]
[1693354715013,7.17448,1729.4,1729.3,0.00623492]
[1693354715216,9.0556852,1729.4,1729.3,0.00623492]
[1693354715522,14.8381652,1729.4,1729.3,0.00623492]
[1693354715903,14.8381652,1729.4,1729.2,0.1]
[1693354716426,12.95696,1729.4,1729.2,0.1]
[1693354720699,12.95696,1729.4,1729.1,5.88335]
[1693354721331,1.392,1729.2,1729.1,0.1]
[1693354721521,18.74106,1729.2,1729.1,0.1]
[1693354732224,18.74106,1729.2,1729.1,0.1]
[1693354749450,7.63461107,1729.4,1729.1,0.1]
[1693354749654,13.41715107,1729.4,1729.1,0.688336]
[1693354757006,7.63461107,1729.4,1729.1,0.688336]
[1693354757213,5.78248,1729.4,1729.2,1.00507295]
[1693354757395,5.78248,1729.4,1729.2,1.81313463]
[1693354757612,5.78248,1729.4,1729.2,0.80806168]
[1693354765525,8.68215,1729.5,1729.2,9.46451233]
[1693354765694,2.9,1729.5,1729.2,15.24753233]
[1693354765899,2.9,1729.5,1729.3,1.52475323]
[1693354766119,2.9,1729.5,1729.3,7.30728323]
[1693354767026,2.9,1729.5,1729.3,10.18076388]
[1693354774813,2.9,1729.5,1729.4,2.87348065]
[1693354775011,2.9,1729.5,1729.4,8.65583065]
[1693354775234,2.9,1729.5,1729.4,10.25214204]
[1693354776413,2.9,1729.5,1729.4,21.81684204]
[1693354776632,2.9,1729.5,1729.4,27.89384204]
[1693354782258,2.9,1729.5,1729.4,30.89384204]
[1693354784472,2.9,1729.5,1729.4,31.37384204]
[1693354785859,2.9,1729.5,1729.4,32.37863635]
[1693354788362,2.9,1729.5,1729.4,35.2777985]
[1693354788745,2.29714672,1729.5,1729.4,35.2777985]
[1693354789350,2.29714672,1729.5,1729.4,35.73512121]
[1693354789664,2.29714672,1729.5,1729.4,36.33902909]
[1693354793814,1.7461,1730.1,1729.8,23.41982]
[1693354793982,1.7461,1730.1,1730.0,5.78034]
[1693354794191,1.7461,1730.1,1730.0,8.65382065]
[1693354794383,9.62656422,1730.4,1730.0,8.65382065]
[1693354794586,1.6303,1730.3,1730.0,8.65382065]
[1693354796523,7.40968,1730.3,1730.0,8.65382065]
[1693354800308,7.40968,1730.3,1730.0,14.43416065]
[1693354802201,8.80168,1730.3,1730.0,14.43416065]
[1693354803294,10.50530442,1730.3,1730.0,14.43416065]
[1693354803489,1.392,1730.1,1729.8,5.78074]
[1693354803694,1.392,1730.1,1729.9,2.87348065]
[1693354803934,1.392,1730.0,1729.9,5.78064]
[1693354804226,0.57829482,1730.1,1729.9,5.78064]
[1693354804227,1.392,1730.1,1729.9,5.78064]
[1693354804794,1.392,1730.1,1729.9,11.56132]
[1693354805095,1.392,1730.1,1729.9,14.43480065]
[1693354805823,1.392,1730.1,1729.9,8.65412065]
[1693354816844,2.784,1730.0,1729.3,13.69341111]
[1693354817145,2.784,1730.0,1729.3,14.43851065]
[1693354817146,1.392,1729.6,1729.3,14.43851065]
[1693354817509,1.392,1729.6,1729.3,20.22119065]
[1693354819740,1.392,1729.6,1729.3,14.43851065]
[1693354819944,7.1738,1729.6,1729.3,14.43851065]
[1693354823126,7.1738,1729.6,1729.3,8.65583065]
[1693354824067,7.1738,1729.6,1729.3,14.43851065]
[1693354824362,17.34528,1729.6,1729.1,0.70390788]
[1693354824562,1.392,1729.4,1729.1,8.75683065]
[1693354824771,1.392,1729.3,1729.1,2.97348065]
[1693354825064,7.17475,1729.3,1729.1,0.1]
[1693354825437,7.17475,1729.3,1729.1,5.88334]
[1693354826331,1.392,1729.3,1729.1,5.88334]
[1693354827164,7.17469,1729.3,1729.1,5.88334]
[1693354833837,2.75579413,1729.4,1729.1,9.92350265]
[1693354834044,1.85279214,1730.0,1729.4,9.077]
[1693354834275,1.392,1730.0,1729.6,6.077]
[1693354834475,5.7792,1730.4,1729.7,23.21175451]
[1693354834476,1.21412543,1730.4,1729.7,23.21175451]
[1693354834641,1.21412543,1730.5,1729.8,6.077]
[1693354834841,1.21412543,1730.5,1730.0,20.21441065]
[1693354835081,1.21412543,1730.5,1730.1,13.53660407]
[1693354835380,5.77713,1731.0,1730.3,6.077]
[1693354835381,1.21412543,1730.7,1730.3,6.077]
[1693354835684,1.21412543,1730.7,1730.5,11.55734]
[1693354835993,1.392,1731.0,1730.6,2.87348065]
[1693354836153,1.392,1731.2,1730.7,5.77789]
[1693354836346,7.16837,1731.2,1730.8,0.577789]
[1693354836540,7.16837,1731.2,1730.8,6.355429]
[1693354838261,1.392,1731.2,1730.8,6.355429]
[1693354838460,1.493,1731.3,1730.9,0.6355429]
[1693354838768,1.493,1731.3,1731.0,5.77694]
[1693354838971,1.493,1731.3,1731.0,5.98060244]
[1693354839495,0.101,1731.3,1731.0,5.98060244]
[1693354839672,0.101,1731.3,1731.1,0.59806024]
[1693354840084,5.877,1731.3,1731.0,0.20366244]
[1693354840265,0.57829482,1731.2,1731.0,0.20366244]
[1693354840460,0.57829482,1731.2,1730.6,11.55656]
[1693354840461,5.77667,1731.1,1730.7,5.77793]
[1693354840675,1.392,1731.0,1730.7,6.933548]
[1693354840996,5.77642,1731.2,1730.7,15.58502865]
[1693354841194,1.392,1731.2,1730.7,15.58502865]
[1693354841892,1.392,1731.1,1730.7,6.933548]
[1693354842099,1.392,1731.0,1730.7,5.77793]
[1693354844803,1.392,1731.1,1730.7,5.77793]
[1693354845388,1.392,1731.1,1730.7,11.55593]
[1693354845587,5.87714,1731.3,1730.8,4.02907365]
[1693354845588,1.493,1731.3,1730.8,4.02907365]
[1693354845795,0.101,1731.3,1730.9,23.40868]
[1693354846004,0.101,1731.3,1731.0,2.87348065]
[1693354846305,0.101,1731.3,1731.1,5.77667]
[1693354846490,0.101,1731.3,1731.1,10.09286271]
[1693354846801,0.101,1731.3,1731.1,7.21938206]